fUST/lending_fUST_20240520
["ID","MTS","AMOUNT","RATE_DAILY","PERIOD"]
[327539701,1716197845183,-500.0,0.00044109,31]
[327539702,1716197845209,-521.28370959,0.00044109,31]
[327539703,1716197845234,-500.0,0.00044109,31]
[327539704,1716197845259,-500.0,0.00044109,31]
[327539705,1716197845285,-500.0,0.00044109,31]
[327539706,1716197845309,-513.31715873,0.00044109,31]
[327539707,1716197845335,-500.0,0.00044109,31]
[327539708,1716197845360,-500.0,0.00044109,31]
[327539709,1716197845386,-272.30963175,0.00044109,31]
[327539710,1716197845411,-500.0,0.00044109,31]
[327539711,1716197845437,-500.0,0.00044109,31]
[327539712,1716197845464,-505.19323275,0.00044109,31]
[327539713,1716197845488,-503.58629594,0.00044109,31]
[327539714,1716197845511,-593.17,0.00044109,31]
[327539715,1716197845536,-500.0,0.00044109,31]
[327539716,1716197845560,-558.83,0.00044109,31]
[327539717,1716197845585,-513.99244269,0.00044109,31]
[327539718,1716197845609,-500.0,0.00044109,31]
[327539719,1716197845636,-906.0,0.00044109,31]
[327539720,1716197845661,-532.70666029,0.00044109,31]
[327539721,1716197845686,-500.0,0.00044109,31]
[327539722,1716197845714,-513.49713772,0.00044109,31]
[327539723,1716197845740,-508.0309943,0.00044109,31]
[327539724,1716197845765,-500.0,0.00044109,31]
[327539725,1716197845794,-500.0,0.00044109,31]
[327539726,1716197845818,-500.0,0.00044109,30]
[327539727,1716197845843,-500.0,0.00044109,31]
[327539728,1716197845868,-500.0,0.00044109,31]
[327539729,1716197845895,-502.10553083,0.00044109,31]
[327539730,1716197845920,-500.0,0.00044109,31]
[327539731,1716197845946,-500.0,0.00044109,31]
[327539732,1716197845971,-644.10000506,0.00044109,31]
[327539733,1716197845997,-500.0,0.00044109,31]
[327539734,1716197846023,-500.0,0.00044109,31]
[327539735,1716197846047,-500.0,0.00044109,31]
[327539736,1716197846077,-500.0,0.00044109,31]
[327539737,1716197846103,-500.0,0.00044109,31]
[327539738,1716197846130,-500.0,0.00044109,31]
[327539739,1716197846159,-502.5,0.00044109,31]
[327539740,1716197846185,-500.0,0.00044109,31]
[327539741,1716197846211,-500.0,0.00044109,31]
[327539742,1716197846237,-500.0,0.00044109,31]
[327539743,1716197846262,-500.0,0.00044109,31]
[327539744,1716197846365,-500.0,0.00044109,31]
[327539745,1716197846390,-500.0,0.00044109,31]
[327539746,1716197846416,-500.0,0.00044109,31]
[327539747,1716197846440,-500.0,0.00044109,31]
[327539748,1716197846465,-500.0,0.00044109,31]
[327539749,1716197846488,-500.0,0.00044109,31]
[327539750,1716197846512,-5426.31,0.00044109,31]
[327539751,1716197846537,-500.0,0.00044109,31]
[327539752,1716197846563,-500.0,0.00044109,31]
[327539753,1716197846592,-3919.68,0.00044109,31]
[327539754,1716197846616,-500.0,0.00044109,31]
[327539755,1716197846640,-500.0,0.00044109,31]
[327539756,1716197846665,-450.35844423,0.00044109,31]
[327539757,1716197846690,-501.9920832,0.00044109,31]
[327539758,1716197846718,-500.0,0.00044109,31]
[327539759,1716197846744,-500.0,0.00044109,31]
[327539760,1716197846769,-500.0,0.00044109,31]
[327539761,1716197846795,-506.73301655,0.00044109,31]
[327539762,1716197846820,-500.0,0.00044109,31]
[327539763,1716197846845,-506.09027513,0.00044109,31]
[327539764,1716197846869,-500.0,0.00044109,31]
[327539765,1716197846894,-500.0,0.00044109,31]
[327539766,1716197846919,-500.0,0.00044109,31]
[327539767,1716197846949,-500.0,0.00044109,31]
[327539768,1716197846975,-608.36900128,0.00044109,31]
[327539769,1716197847002,-500.0,0.00044109,31]
[327539770,1716197847028,-500.0,0.00044109,31]
[327539771,1716197847053,-2263.18,0.00044109,31]
[327539772,1716197847081,-500.0,0.00044109,31]
[327539773,1716197847106,-500.92945445,0.00044109,31]
[327539774,1716197847132,-500.0,0.00044109,31]
[327539775,1716197847159,-500.0,0.00044109,20]
[327539776,1716197847185,-500.0,0.00044109,31]
[327539777,1716197847212,-673.01,0.00044109,31]
[327539778,1716197847236,-500.0,0.00044109,31]
[327539779,1716197847262,-500.0,0.00044109,30]
[327539780,1716197847288,-502.37017628,0.00044109,31]
[327539781,1716197847315,-500.0,0.00044109,31]
[327539782,1716197847340,-1000.0,0.00044109,31]
[327539783,1716197847365,-3801.35,0.00044109,31]
[327539784,1716197847390,-987.08,0.00044109,31]
[327539785,1716197847415,-570.94996319,0.00044109,31]
[327539786,1716197847439,-505.54519165,0.00044109,31]
[327539787,1716197847464,-504.48740737,0.00044109,31]
[327539788,1716197847489,-500.0,0.00044109,31]
[327539789,1716197847515,-596.31649036,0.00044109,31]
[327539790,1716197847540,-388.22741735,0.00044109,31]
[327539791,1716197847564,-500.0,0.00044109,31]
[327539792,1716197847589,-695.43,0.00044109,31]
[327539793,1716197847612,-500.0,0.00044109,31]
[327539794,1716197847636,-543.1,0.00044109,31]
[327539795,1716197847662,-509.51551177,0.00044109,31]
[327539796,1716197847687,-5302.64,0.00044109,31]
[327539797,1716197847713,-500.0,0.00044109,31]
[327539798,1716197847739,-582.49,0.00044109,31]
[327539799,1716197847763,-548.68405765,0.00044109,31]
[327539800,1716197847788,-500.0,0.00044109,31]
[327539801,1716197847812,-503.41110516,0.00044109,31]
[327539802,1716197847835,-648.32191241,0.00044109,31]
[327539803,1716197847861,-500.0,0.00044109,31]
[327539804,1716197847886,-500.0,0.00044109,31]
[327539805,1716197847987,-500.0,0.00044109,31]
[327539806,1716197848013,-500.0,0.00044109,31]
[327539807,1716197848037,-500.0,0.00044109,31]
[327539808,1716197848061,-170.98524488,0.00044109,31]
[327539809,1716197848090,-500.0,0.00044109,31]
[327539810,1716197848115,-503.5181633,0.00044109,31]
[327539811,1716197848138,-513.75287275,0.00044109,31]
[327539812,1716197848163,-500.0,0.00044109,31]
[327539813,1716197848187,-508.28964547,0.00044109,31]
[327539814,1716197848212,-500.0,0.00044109,31]
[327539815,1716197848236,-604.87,0.00044109,31]
[327539816,1716197848260,-500.0,0.00044109,31]
[327539817,1716197848283,-303.96871029,0.00044109,31]
[327539818,1716197848307,-503.32537912,0.00044109,31]
[327539819,1716197848331,-500.0,0.00044109,31]
[327539820,1716197848355,-500.0,0.00044109,31]
[327539821,1716197848379,-500.0,0.00044109,31]
[327539822,1716197848402,-500.28783267,0.00044109,31]
[327539823,1716197848426,-504.54468772,0.00044109,31]
[327539824,1716197848452,-500.0,0.00044109,31]
[327539825,1716197848476,-550.19607065,0.00044109,31]
[327539826,1716197848500,-644.89,0.00044109,31]
[327539827,1716197848526,-2270.75,0.00044109,31]
[327539828,1716197848550,-160.62045722,0.00044109,31]
[327539829,1716197848575,-500.0,0.00044109,31]
[327539830,1716197848599,-3149.25,0.00044109,31]
[327539831,1716197848623,-500.0,0.00044109,31]
[327539832,1716197848650,-500.0,0.00044109,31]
[327539833,1716197848674,-500.0,0.00044109,31]
[327539834,1716197848701,-606.21061248,0.00044109,31]
[327539835,1716197848726,-782.66,0.00044109,31]
[327539836,1716197848749,-500.0,0.00044109,31]
[327539837,1716197848775,-500.0,0.00044109,31]
[327539838,1716197848799,-609.32538819,0.00044109,31]
[327539839,1716197848823,-500.0,0.00044109,31]
[327539840,1716197848849,-500.0,0.00044109,31]
[327539841,1716197848875,-500.0,0.00044109,31]
[327539842,1716197848900,-500.0,0.00044109,31]
[327539843,1716197848927,-849.15,0.00044109,21]
[327539844,1716197848951,-587.07678689,0.00044109,31]
[327539845,1716197848975,-537.28171863,0.00044109,31]
[327539846,1716197849000,-564.54,0.00044109,31]
[327539847,1716197849024,-500.0,0.00044109,31]
[327539848,1716197849048,-500.0,0.00044109,31]
[327539849,1716197849076,-500.0,0.00044109,31]
[327539850,1716197849101,-2611.13,0.00044109,31]
[327539851,1716197849127,-507.82753779,0.00044109,31]
[327539852,1716197849152,-419.30115078,0.00044109,31]
[327539853,1716197849178,-500.0,0.00044109,31]
[327539854,1716197849205,-500.0,0.00044109,31]
[327539855,1716197849228,-500.0,0.00044109,31]
[327539856,1716197849252,-1155.5,0.00044109,31]
[327539857,1716197849276,-500.0,0.00044109,31]
[327539858,1716197849299,-500.0,0.00044109,31]
[327539859,1716197849322,-500.0,0.00044109,31]
[327539860,1716197849346,-500.0,0.00044109,31]
[327539861,1716197849370,-500.0,0.00044109,31]
[327539862,1716197849393,-500.0,0.00044109,31]
[327539863,1716197849418,-26814.17,0.00044109,31]
[327539864,1716197849516,-501.42897435,0.00044109,31]
[327539865,1716197849540,-503.07057104,0.00044109,30]
[327539866,1716197849565,-500.0,0.00044109,31]
[327539867,1716197849589,-1202.38,0.00044109,31]
[327539868,1716197849615,-500.0,0.00044109,31]
[327539869,1716197849640,-322.9275544,0.00044109,31]
[327539870,1716197849666,-500.0,0.00044109,31]
[327539871,1716197849704,-509.72771303,0.00044109,31]
[327539872,1716197849733,-501.88073443,0.00044109,31]
[327539873,1716197849760,-611.52,0.00044109,31]
[327539874,1716197849787,-500.0,0.00044109,31]
[327539875,1716197849814,-507.75844484,0.00044109,31]
[327539876,1716197849841,-500.0,0.00044109,31]
[327539877,1716197849869,-500.0,0.00044109,31]
[327539878,1716197849896,-500.0,0.00044109,31]
[327539879,1716197849924,-500.0,0.00044109,31]
[327539880,1716197849951,-500.0,0.00044109,31]
[327539881,1716197849977,-507.09550584,0.00044109,31]
[327539882,1716197850004,-971.52,0.00044109,31]
[327539883,1716197850030,-500.0,0.00044109,31]
[327539884,1716197850056,-544.96946983,0.00044109,31]
[327539885,1716197850085,-500.0,0.00044109,31]
[327539886,1716197850110,-500.0,0.00044109,31]
[327539887,1716197850137,-500.0,0.00044109,31]
[327539888,1716197850164,-500.0,0.00044136,60]
[327539889,1716197850191,-500.0,0.00044164,60]
[327539890,1716197850218,-500.0,0.00044191,60]
[327539891,1716197850244,-500.0,0.00044219,60]
[327539892,1716197850270,-522.79502143,0.00044246,60]
[327539893,1716197850295,-500.0,0.00044383,32]
[327539894,1716197850320,-500.0,0.00044383,32]
[327539895,1716197850345,-286.67024488,0.00044383,32]
[327539896,1716197850370,-500.0,0.00044383,32]
[327539897,1716197850395,-509.23878465,0.00044383,32]
[327539898,1716197850421,-509.84853192,0.00044383,32]
[327539899,1716197850447,-513.01933101,0.00044383,32]
[327539900,1716197850473,-1063.94,0.00044383,32]
[327539901,1716197850498,-503.37545285,0.00044383,32]
[327539902,1716197850524,-1306.3,0.00044383,32]
[327539903,1716197850548,-503.83238558,0.00044383,32]
[327539904,1716197850573,-531.351027,0.00044383,32]
[327539905,1716197850599,-505.47335446,0.00044383,32]
[327539906,1716197850624,-500.0,0.00044383,32]
[327539907,1716197850648,-500.0,0.00044383,32]
[327539908,1716197850671,-212.2201825,0.00044383,32]
[327539909,1716197850697,-500.0,0.00044383,32]
[327539910,1716197850725,-500.0,0.00044383,32]
[327539911,1716197850751,-500.0,0.00044383,32]
[327539912,1716197850777,-500.0,0.00044383,32]
[327539913,1716197850803,-533.27095296,0.00044383,32]
[327539914,1716197850829,-2979.56,0.00044383,32]
[327539915,1716197850855,-500.0,0.00044383,32]
[327539916,1716197850880,-500.0,0.00044383,32]
[327539917,1716197850906,-500.0,0.00044383,32]
[327539918,1716197850932,-496.57243552,0.00044383,32]
[327539919,1716197850959,-510.91,0.00044383,32]
[327539920,1716197850984,-2487.5,0.00044383,32]
[327539921,1716197851104,-529.17,0.00044383,32]
[327539922,1716197851131,-554.44538787,0.00044383,32]
[327539923,1716197851159,-191.92826714,0.00044383,32]
[327539924,1716197851185,-500.0,0.00044383,32]
[327539925,1716197851211,-500.0,0.00044383,32]
[327539926,1716197851237,-500.0,0.00044383,32]
[327539927,1716197851266,-500.0,0.00044383,32]
[327539928,1716197851291,-500.0,0.00044383,32]
[327539929,1716197851318,-482.90839835,0.00044383,32]
[327539930,1716197851348,-500.0,0.00044383,32]
[327539931,1716197851374,-310.66107827,0.00044383,32]
[327539932,1716197851401,-500.0,0.00044383,32]
[327539933,1716197851428,-500.0,0.00044383,32]
[327539934,1716197851455,-500.0,0.00044383,32]
[327539935,1716197851480,-514.03895354,0.00044383,32]
[327539936,1716197851507,-542.56803454,0.00044383,32]
[327539937,1716197851533,-564.91820106,0.00044383,32]
[327539938,1716197851559,-500.0,0.00044383,32]
[327539939,1716197851586,-500.0,0.00044383,32]
[327539940,1716197851612,-500.0,0.00044383,32]
[327539941,1716197851637,-500.0,0.00044383,32]
[327539942,1716197851663,-500.0,0.00044383,32]
[327539943,1716197851688,-513.69469914,0.00044383,32]
[327539944,1716197851716,-500.0,0.00044383,32]
[327539945,1716197851744,-593.17,0.00044383,32]
[327539946,1716197851770,-500.0,0.00044383,32]
[327539947,1716197851796,-558.83,0.00044383,32]
[327539948,1716197851822,-500.0,0.00044383,32]
[327539949,1716197851848,-906.0,0.00044383,32]
[327539950,1716197851876,-500.0,0.00044383,32]
[327539951,1716197851902,-500.0,0.00044383,32]
[327539952,1716197851928,-500.0,0.00044383,32]
[327539953,1716197851954,-545.64830673,0.00044383,32]
[327539954,1716197851978,-500.0,0.00044383,30]
[327539955,1716197852006,-500.0,0.00044383,32]
[327539956,1716197852032,-500.0,0.00044383,32]
[327539957,1716197852057,-380.77293251,0.00044383,32]
[327539958,1716197852085,-500.0,0.00044383,32]
[327539959,1716197852111,-500.0,0.00044383,32]
[327539960,1716197852139,-500.0,0.00044383,32]
[327539961,1716197852166,-500.0,0.00044383,32]
[327539962,1716197852193,-500.0,0.00044383,32]
[327539963,1716197852222,-502.5,0.00044383,32]
[327539964,1716197852249,-218.50876118,0.00044383,32]
[327539965,1716197852276,-500.0,0.00044383,32]
[327539966,1716197852305,-500.0,0.00044383,32]
[327539967,1716197852333,-500.0,0.00044383,32]
[327539968,1716197852359,-500.0,0.00044383,32]
[327539969,1716197852385,-500.0,0.00044383,32]
[327539970,1716197852410,-541.65797864,0.00044383,32]
[327539971,1716197852446,-500.0,0.00044383,32]
[327539972,1716197852474,-500.0,0.00044383,32]
[327539973,1716197852500,-5426.31,0.00044383,32]
[327539974,1716197852527,-505.67175697,0.00044383,32]
[327539975,1716197852554,-505.82514071,0.00044383,32]
[327539976,1716197852693,-3919.68,0.00044383,32]
[327539977,1716197852721,-500.0,0.00044383,32]
[327539978,1716197852749,-500.0,0.00044383,32]
[327539979,1716197852776,-500.0,0.00044383,32]
[327539980,1716197852804,-511.15943143,0.00044383,32]
[327539981,1716197852832,-500.0,0.00044383,32]
[327539982,1716197852858,-500.0,0.00044383,32]
[327539983,1716197852884,-500.0,0.00044383,32]
[327539984,1716197852911,-504.26661814,0.00044383,32]
[327539985,1716197852937,-500.0,0.00044383,32]
[327539986,1716197852965,-500.0,0.00044383,32]
[327539987,1716197852991,-551.60628326,0.00044383,32]
[327539988,1716197853017,-500.0,0.00044383,32]
[327539989,1716197853044,-2263.18,0.00044383,32]
[327539990,1716197853075,-500.0,0.00044383,32]
[327539991,1716197853102,-185.5366136,0.00044383,32]
[327539992,1716197853129,-500.0,0.00044383,20]
[327539993,1716197853155,-500.0,0.00044383,32]
[327539994,1716197853184,-673.01,0.00044383,32]
[327539995,1716197853212,-500.0,0.00044383,32]
[327539996,1716197853237,-500.0,0.00044383,30]
[327539997,1716197853262,-500.0,0.00044383,32]
[327539998,1716197853287,-1000.0,0.00044383,32]
[327539999,1716197853313,-3801.35,0.00044383,32]
[327540000,1716197853338,-987.08,0.00044383,32]
[327540001,1716197853363,-500.0,0.00044383,32]
[327540002,1716197853388,-500.0,0.00044383,32]
[327540003,1716197853414,-695.43,0.00044383,32]
[327540004,1716197853440,-519.53166823,0.00044383,32]
[327540005,1716197853466,-543.1,0.00044383,32]
[327540006,1716197853491,-5302.64,0.00044383,32]
[327540007,1716197853518,-528.74390722,0.00044383,32]
[327540008,1716197853543,-582.49,0.00044383,32]
[327540009,1716197853568,-500.0,0.00044383,32]
[327540010,1716197853593,-500.0,0.00044383,32]
[327540011,1716197853618,-500.0,0.00044383,32]
[327540012,1716197853643,-500.0,0.00044383,32]
[327540013,1716197853667,-500.0,0.00044383,32]
[327540014,1716197853692,-500.0,0.00044383,32]
[327540015,1716197853718,-500.0,0.00044383,32]
[327540016,1716197853743,-500.0,0.00044383,32]
[327540017,1716197853768,-530.39517955,0.00044383,32]
[327540018,1716197853793,-604.87,0.00044383,32]
[327540019,1716197853819,-162.33684545,0.00044383,32]
[327540020,1716197853845,-383.71894319,0.00044383,32]
[327540021,1716197853871,-573.15573275,0.00044383,32]
[327540022,1716197853899,-500.0,0.00044383,32]
[327540023,1716197853924,-525.83156765,0.00044383,32]
[327540024,1716197853952,-644.89,0.00044383,32]
[327540025,1716197853979,-2270.75,0.00044383,32]
[327540026,1716197854005,-500.0,0.00044383,32]
[327540027,1716197854032,-3149.25,0.00044383,32]
[327540028,1716197854058,-500.95129566,0.00044383,32]
[327540029,1716197854155,-500.0,0.00044383,32]
[327540030,1716197854184,-500.0,0.00044383,32]
[327540031,1716197854212,-782.66,0.00044383,32]
[327540032,1716197854237,-279.99427953,0.00044383,32]
[327540033,1716197854264,-500.0,0.00044383,32]
[327540034,1716197854290,-500.0,0.00044383,32]
[327540035,1716197854316,-500.0,0.00044383,32]
[327540036,1716197854343,-500.0,0.00044383,32]
[327540037,1716197854370,-500.0,0.00044383,32]
[327540038,1716197854398,-849.15,0.00044383,21]
[327540039,1716197854424,-500.0,0.00044383,32]
[327540040,1716197854449,-500.0,0.00044383,32]
[327540041,1716197854474,-500.0,0.00044383,32]
[327540042,1716197854499,-564.54,0.00044383,32]
[327540043,1716197854525,-2611.13,0.00044383,32]
[327540044,1716197854550,-500.0,0.00044383,32]
[327540045,1716197854575,-500.0,0.00044383,32]
[327540046,1716197854600,-227.36569565,0.00044383,32]
[327540047,1716197854625,-1155.5,0.00044383,32]
[327540048,1716197854653,-515.62343394,0.00044383,32]
[327540049,1716197854680,-500.0,0.00044383,32]
[327540050,1716197854706,-500.0,0.00044383,32]
[327540051,1716197854730,-511.75830766,0.00044383,32]
[327540052,1716197854755,-500.0,0.00044383,32]
[327540053,1716197854779,-500.0,0.00044383,32]
[327540054,1716197854806,-26814.17,0.00044383,32]
[327540055,1716197854833,-500.0,0.00044383,32]
[327540056,1716197854858,-1202.38,0.00044383,32]
[327540057,1716197854884,-500.0,0.00044383,32]
[327540058,1716197854912,-500.0,0.00044383,32]
[327540059,1716197854940,-611.52,0.00044383,32]
[327540060,1716197854968,-500.0,0.00044383,32]
[327540061,1716197854994,-507.21868325,0.00044383,32]
[327540062,1716197855024,-524.8426064,0.00044383,32]
[327540063,1716197855050,-500.0,0.00044383,32]
[327540064,1716197855079,-500.0,0.00044383,32]
[327540065,1716197855104,-500.0,0.00044383,32]
[327540066,1716197855130,-971.52,0.00044383,32]
[327540067,1716197855156,-500.0,0.00044383,32]
[327540068,1716197855181,-500.0,0.00044383,32]
[327540069,1716197855207,-500.0,0.00044383,32]
[327540070,1716197855232,-500.0,0.00044383,32]
[327540071,1716197855260,-653.4,0.00044451,30]
[327540072,1716197855288,-150.4,0.00044451,30]
[327540073,1716197855315,-191.0,0.00044657,69]
[327540074,1716197855340,-373.67506731,0.00044657,33]
[327540075,1716197855368,-249.88990096,0.00044657,33]
[327540076,1716197855395,-379.87195209,0.00044657,33]
[327540077,1716197855421,-1063.94,0.00044657,33]
[327540078,1716197855451,-1306.3,0.00044657,33]
[327540079,1716197855475,-500.0,0.00044657,33]
[327540080,1716197855568,-500.0,0.00044657,33]
[327540081,1716197855595,-500.0,0.00044657,33]
[327540082,1716197855620,-500.0,0.00044657,33]
[327540083,1716197855647,-500.0,0.00044657,33]
[327540084,1716197855672,-500.0,0.00044657,33]
[327540085,1716197855697,-2979.56,0.00044657,33]
[327540086,1716197855724,-9.75379551,0.00044657,33]
[327540087,1716197875717,-12069.69118517,0.00029,30]
[327540088,1716197875751,-583.01,0.00043835,30]
[327540089,1716197875782,-500.0,0.00043835,30]
[327540090,1716197875813,-500.0,0.00043835,30]
[327540091,1716197875845,-500.0,0.00043835,30]
[327540092,1716197875873,-500.0,0.00043835,30]
[327540093,1716197875902,-500.0,0.00043835,30]
[327540094,1716197875928,-500.0,0.00043835,30]
[327540095,1716197875955,-500.0,0.00043835,30]
[327540096,1716197875983,-500.0,0.00043835,30]
[327540097,1716197876010,-500.0,0.00043835,30]
[327540098,1716197876036,-500.0,0.00043835,30]
[327540099,1716197876064,-500.0,0.00043835,30]
[327540100,1716197876096,-500.0,0.00043835,30]
[327540101,1716197876125,-508.93,0.00043835,30]
[327540102,1716197876151,-500.0,0.00043835,30]
[327540103,1716197876181,-500.0,0.00043835,30]
[327540104,1716197876278,-2482.96,0.00043835,30]
[327540105,1716197876305,-500.0,0.00043835,30]
[327540106,1716197876332,-500.0,0.00043835,30]
[327540107,1716197876360,-2084.45,0.00043835,30]
[327540108,1716197876389,-505.18979832,0.00044109,31]
[327540109,1716197876416,-500.0,0.00044109,31]
[327540110,1716197876442,-500.0,0.00044109,31]
[327540111,1716197876468,-500.0,0.00044109,31]
[327540112,1716197876493,-600.05914449,0.00044109,31]
[327540113,1716197876518,-500.0,0.00044109,31]
[327540114,1716197876543,-500.0,0.00044109,31]
[327540115,1716197876567,-2482.96,0.00044109,31]
[327540116,1716197876595,-500.0,0.00044109,31]
[327540117,1716197876623,-500.0,0.00044383,32]
[327540118,1716197876651,-500.0,0.00044383,32]
[327540119,1716197876680,-257.62694705,0.00044383,32]
[327540120,1716197876708,-500.0,0.00044383,32]
[327540121,1716197876739,-500.0,0.00044383,32]
[327540122,1716197876766,-2482.96,0.00044383,32]
[327540123,1716197876795,-500.0,0.00044383,32]
[327540124,1716197876823,-490.24620449,0.00044657,33]
[327540125,1716197876849,-500.0,0.00044657,33]
[327540126,1716197876876,-510.91,0.00044657,33]
[327540127,1716197876901,-2487.5,0.00044657,33]
[327540128,1716197876932,-529.17,0.00044657,33]
[327540129,1716197876959,-500.0,0.00044657,33]
[327540130,1716197876985,-500.0,0.00044657,33]
[327540131,1716197877012,-500.0,0.00044657,33]
[327540132,1716197877037,-500.0,0.00044657,33]
[327540133,1716197877063,-500.0,0.00044657,33]
[327540134,1716197877090,-648.68380271,0.00044657,33]
[327540135,1716197877116,-500.0,0.00044657,33]
[327540136,1716197877142,-369.50325839,0.00044657,33]
[327540137,1716197877169,-500.0,0.00044657,33]
[327540138,1716197877196,-500.0,0.00044657,33]
[327540139,1716197877223,-500.0,0.00044657,33]
[327540140,1716197877247,-500.0,0.00044657,33]
[327540141,1716197877273,-500.0,0.00044657,33]
[327540142,1716197877299,-500.0,0.00044657,33]
[327540143,1716197877325,-500.0,0.00044657,33]
[327540144,1716197877350,-593.17,0.00044657,33]
[327540145,1716197877376,-500.0,0.00044657,33]
[327540146,1716197877400,-558.83,0.00044657,33]
[327540147,1716197877424,-500.0,0.00044657,33]
[327540148,1716197877449,-906.0,0.00044657,33]
[327540149,1716197877476,-500.0,0.00044657,33]
[327540150,1716197877504,-500.0,0.00044657,33]
[327540151,1716197877594,-500.0,0.00044657,33]
[327540152,1716197877618,-500.0,0.00044657,30]
[327540153,1716197877643,-317.64702132,0.00044657,33]
[327540154,1716197877668,-500.0,0.00044657,33]
[327540155,1716197878918,-559.16439488,0.00044657,33]
[327540156,1716197878946,-625.72210853,0.00044657,33]
[327540157,1716197878973,-367.46263519,0.00044657,33]
[327540158,1716197879001,-579.7263007,0.00044657,33]
[327540159,1716197879028,-500.0,0.00044657,33]
[327540160,1716197879055,-500.0,0.00044657,33]
[327540161,1716197879084,-500.0,0.00044657,33]
[327540162,1716197879330,-500.0,0.00044657,33]
[327540163,1716197879356,-500.0,0.00044657,33]
[327540164,1716197879385,-500.0,0.00044657,33]
[327540165,1716197879413,-5426.31,0.00044657,33]
[327540166,1716197879437,-461.27025823,0.00044657,33]
[327540167,1716197879462,-500.0,0.00044657,33]
[327540168,1716197879488,-500.0,0.00044657,33]
[327540169,1716197879516,-500.0,0.00044657,33]
[327540170,1716197879542,-500.0,0.00044657,33]
[327540171,1716197879568,-500.0,0.00044657,33]
[327540172,1716197879594,-508.90135833,0.00044657,33]
[327540173,1716197879619,-500.0,0.00044657,33]
[327540174,1716197879644,-500.0,0.00044657,33]
[327540175,1716197879669,-500.0,0.00044657,20]
[327540176,1716197879694,-673.01,0.00044657,33]
[327540177,1716197879719,-500.0,0.00044657,33]
[327540178,1716197879749,-500.0,0.00044657,30]
[327540179,1716197879775,-500.0,0.00044657,33]
[327540180,1716197879800,-1005.96711519,0.00044657,33]
[327540181,1716197879826,-987.08,0.00044657,33]
[327540182,1716197879852,-3801.35,0.00044657,33]
[327540183,1716197879879,-500.0,0.00044657,33]
[327540184,1716197879906,-500.0,0.00044657,33]
[327540185,1716197879934,-695.43,0.00044657,33]
[327540186,1716197879960,-543.1,0.00044657,33]
[327540187,1716197879989,-5302.64,0.00044657,33]
[327540188,1716197880016,-582.49,0.00044657,33]
[327540189,1716197880043,-500.08591447,0.00044657,33]
[327540190,1716197880071,-500.0,0.00044657,33]
[327540191,1716197880099,-500.0,0.00044657,33]
[327540192,1716197880125,-500.0,0.00044657,33]
[327540193,1716197880151,-500.0,0.00044657,33]
[327540194,1716197880179,-500.0,0.00044657,33]
[327540195,1716197880205,-500.0,0.00044657,33]
[327540196,1716197880296,-504.33250146,0.00044657,33]
[327540197,1716197880322,-604.87,0.00044657,33]
[327540198,1716197880349,-500.0,0.00044657,33]
[327540199,1716197880374,-644.89,0.00044657,33]
[327540200,1716197880402,-2270.75,0.00044657,33]